fUST/lending_fUST_20250928
["ID","MTS","AMOUNT","RATE_DAILY","PERIOD"]
[388064058,1758997849027,-151.0,0.0002744,7]
[388064059,1758997849036,-151.0,0.0002744,7]
[388064060,1758997849046,-2916.442232,0.0002744,7]
[388064061,1758997849055,-2916.442232,0.0002744,7]
[388064062,1758997849065,-2916.442232,0.0002744,7]
[388064063,1758997849075,-2916.442232,0.0002744,7]
[388064064,1758997849084,-172.900834,0.0002744,7]
[388064065,1758997849094,-172.900834,0.0002744,7]
[388064066,1758997849103,-172.900834,0.0002744,7]
[388064067,1758997849112,-172.900834,0.0002744,7]
[388064068,1758997849121,-180.192848,0.0002744,7]
[388064069,1758997849131,-151.0,0.0002744,7]
[388064070,1758997849140,-180.192848,0.0002744,7]
[388064071,1758997849149,-151.0,0.0002744,7]
[388064072,1758997849159,-180.192848,0.0002744,7]
[388064073,1758997849168,-151.0,0.0002744,7]
[388064074,1758997849177,-180.192848,0.0002744,7]
[388064075,1758997849187,-151.0,0.0002744,7]
[388064076,1758997849196,-151.0,0.0002744,7]
[388064077,1758997849205,-151.0,0.0002744,7]
[388064078,1758997849214,-267.960717,0.0002744,7]
[388064079,1758997849224,-151.0,0.0002744,7]
[388064080,1758997849233,-267.960717,0.0002744,7]
[388064081,1758997849242,-267.960717,0.0002744,7]
[388064082,1758997849250,-267.960717,0.0002744,7]
[388064083,1758997849259,-151.0,0.0002744,7]
[388064084,1758997849268,-151.0,0.0002744,7]
[388064085,1758997849278,-151.0,0.0002744,7]
[388064086,1758997849287,-151.0,0.0002744,7]
[388064087,1758997849296,-151.0,0.0002744,7]
[388064088,1758997849306,-3676.0,0.0002744,7]
[388064089,1758997849315,-151.0,0.0002744,7]
[388064090,1758997849324,-3676.0,0.0002744,7]
[388064091,1758997849333,-3676.0,0.0002744,7]
[388064092,1758997849343,-3676.0,0.0002744,7]
[388064093,1758997849352,-151.0,0.0002744,7]
[388064094,1758997849361,-151.0,0.0002744,7]
[388064095,1758997849371,-151.0,0.0002744,7]
[388064096,1758997849380,-151.0,0.0002744,7]
[388064097,1758997849390,-729.12591,0.0002744,7]
[388064098,1758997849403,-151.0,0.0002744,7]
[388064099,1758997849413,-729.12591,0.0002744,7]
[388064100,1758997849422,-729.12591,0.0002744,7]
[388064101,1758997849431,-729.12591,0.0002744,7]
[388064102,1758997849441,-151.0,0.0002744,7]
[388064103,1758997849451,-151.0,0.0002744,7]
[388064104,1758997849460,-151.0,0.0002744,7]
[388064105,1758997849469,-151.0,0.0002744,7]
[388064106,1758997849479,-490.731149,0.0002744,7]
[388064107,1758997849488,-490.731149,0.0002744,7]
[388064108,1758997849498,-490.731149,0.0002744,7]
[388064109,1758997849507,-490.731149,0.0002744,7]
[388064110,1758997849516,-2500.0,0.00027464,2]
[388064111,1758997849525,-1500.0,0.00027464,5]
[388064112,1758997849535,-2500.0,0.00027464,5]
[388064113,1758997849544,-2500.0,0.00027464,5]
[388064114,1758997849553,-2500.0,0.00027464,5]
[388064115,1758997849563,-2500.0,0.00027464,5]
[388064116,1758997849571,-357.10656999,0.00027464,2]
[388064117,1758997849581,-2500.0,0.00027464,5]
[388064118,1758997849590,-324.24934814,0.00027486,2]
[388064119,1758997849600,-500.0,0.00027495,5]
[388064120,1758997849609,-500.0,0.00027495,5]
[388064121,1758997849619,-500.0,0.00027495,5]
[388064122,1758997849628,-500.0,0.00027495,5]
[388064123,1758997849637,-626.67299368,0.00027495,5]
[388064124,1758997849646,-174.92751106,0.00027495,5]
[388064125,1758997849655,-500.0,0.00027495,5]
[388064126,1758997849663,-430.57133999,0.00027495,5]
[388064127,1758997849673,-500.0,0.00027495,5]
[388064128,1758997849683,-500.0,0.00027495,5]
[388064129,1758997849692,-500.0,0.00027495,5]
[388064130,1758997849701,-623.56628512,0.00027495,5]
[388064131,1758997849710,-3440.73741579,0.000275,2]
[388064132,1758997849720,-460.0,0.00027602,2]
[388064133,1758997849729,-2406.68355311,0.00027664,5]
[388064134,1758997849738,-2500.0,0.00027664,5]
[388064135,1758997849747,-2500.0,0.00027664,5]
[388064136,1758997849756,-2500.0,0.00027664,5]
[388064137,1758997849766,-2500.0,0.00027664,5]
[388064138,1758997849775,-153.08551869,0.0002767,5]
[388064139,1758997849784,-479.17215397,0.00027821,5]
[388064140,1758997849793,-592.80787369,0.00027821,5]
[388064141,1758997849802,-1000.0,0.00027821,5]
[388064142,1758997849811,-1000.0,0.00027821,5]
[388064143,1758997849820,-1000.0,0.00027821,5]
[388064144,1758997849829,-500.0,0.00027821,2]
[388064145,1758997849838,-1000.0,0.00027821,5]
[388064146,1758997849847,-1000.0,0.00027821,5]
[388064147,1758997849857,-524.3249575,0.00027821,5]
[388064148,1758997849866,-1000.0,0.00027821,5]
[388064149,1758997849876,-500.92257167,0.00027821,5]
[388064150,1758997849885,-1000.0,0.00027821,5]
[388064151,1758997849894,-1000.0,0.00027821,5]
[388064152,1758997849903,-1000.0,0.00027821,5]
[388064153,1758997849912,-1000.0,0.00027821,5]
[388064154,1758997849922,-1000.0,0.00027821,5]
[388064155,1758997849931,-501.62374301,0.00027821,5]
[388064156,1758997849940,-911.56330915,0.00027821,5]
[388064157,1758997849949,-1000.0,0.00027821,5]
[388064158,1758997849959,-1000.0,0.00027821,5]
[388064159,1758997849969,-1000.0,0.00027821,5]
[388064160,1758997849978,-1000.0,0.00027821,5]
[388064161,1758997849987,-157.91805218,0.00027821,5]
[388064162,1758997849996,-1000.0,0.00027821,5]
[388064163,1758997850007,-175.82137953,0.00027875,5]
[388064164,1758997850016,-250.0,0.00027945,5]
[388064165,1758997850025,-620.25371054,0.00027948,5]
[388064166,1758997850035,-1000.0,0.00027948,5]
[388064167,1758997850045,-829.54517297,0.00028012,2]
[388064168,1758997850055,-1512.61113973,0.00028012,5]
[388064169,1758997850064,-665.94254313,0.00028012,5]
[388064170,1758997850073,-3000.0,0.00028012,5]
[388064171,1758997850083,-3000.0,0.00028012,5]
[388064172,1758997850092,-3000.0,0.00028012,5]
[388064173,1758997850102,-1004.68998167,0.00028043,5]
[388064174,1758997850111,-1000.0,0.00028043,5]
[388064175,1758997850121,-1000.0,0.00028043,5]
[388064176,1758997850130,-311.44236914,0.00028043,5]
[388064177,1758997850139,-1000.0,0.00028043,5]
[388064178,1758997850149,-1000.0,0.00028043,5]
[388064179,1758997850158,-263.69267931,0.00028043,5]
[388064180,1758997850168,-1000.0,0.00028043,5]
[388064181,1758997850177,-1091.50672127,0.0002811,2]
[388064182,1758997850187,-560.0,0.0002815,2]
[388064183,1758997850196,-3000.0,0.00028212,5]
[388064184,1758997850208,-3000.0,0.00028212,5]
[388064185,1758997850220,-3000.0,0.00028212,5]
[388064186,1758997850230,-3000.0,0.00028212,5]
[388064187,1758997850240,-199.0,0.00028219,14]
[388064188,1758997850249,-1403.14159869,0.00028317,2]
[388064189,1758997850258,-1595.7192423,0.00028368,5]
[388064190,1758997850267,-1500.0,0.00028368,5]
[388064191,1758997850277,-713.76180221,0.00028368,5]
[388064192,1758997850286,-1500.0,0.00028368,5]
[388064193,1758997850296,-1500.0,0.00028368,5]
[388064194,1758997850306,-270.48989284,0.00028368,5]
[388064195,1758997850315,-1500.0,0.00028368,5]
[388064196,1758997850325,-1500.0,0.00028368,5]
[388064197,1758997850335,-1500.0,0.00028368,5]
[388064198,1758997850344,-1500.0,0.00028368,5]
[388064199,1758997850354,-1500.0,0.00028368,5]
[388064200,1758997850363,-1500.0,0.00028368,5]
[388064201,1758997850373,-1500.0,0.00028368,5]
[388064202,1758997850382,-1500.0,0.00028368,5]
[388064203,1758997850391,-170.15660424,0.00028368,5]
[388064204,1758997850405,-1500.0,0.00028368,5]
[388064205,1758997850415,-500.0,0.00028409,5]
[388064206,1758997850424,-500.40702557,0.00028409,5]
[388064207,1758997850434,-155.0,0.00028411,29]
[388064208,1758997850443,-350.0,0.00028493,5]
[388064209,1758997850452,-1500.0,0.00028496,5]
[388064210,1758997850462,-2351.0,0.00028497,2]
[388064211,1758997850472,-192861.23192498,0.000285,7]
[388064212,1758997850481,-308.44818465,0.00028517,2]
[388064213,1758997850491,-153.06906121,0.00028526,5]
[388064214,1758997850500,-3500.0,0.0002856,5]
[388064215,1758997850509,-3500.0,0.0002856,5]
[388064216,1758997850518,-3500.0,0.0002856,5]
[388064217,1758997850528,-1500.0,0.00028591,5]
[388064218,1758997850537,-1273.9083547,0.00028591,5]
[388064219,1758997850546,-1500.0,0.00028591,5]
[388064220,1758997850555,-1500.0,0.00028591,5]
[388064221,1758997850565,-1001.1099315,0.00028591,5]
[388064222,1758997850574,-660.0,0.00028698,2]
[388064223,1758997850584,-5000.0,0.00028716,2]
[388064224,1758997850593,-1000.0,0.00028755,2]
[388064225,1758997850603,-1000.0,0.00028755,2]
[388064226,1758997850612,-1000.0,0.00028755,2]
[388064227,1758997850622,-1000.0,0.00028755,2]
[388064228,1758997850632,-1000.0,0.00028755,2]
[388064229,1758997850641,-1000.0,0.00028755,2]
[388064230,1758997850650,-1000.0,0.00028755,2]
[388064231,1758997850660,-151.0,0.00028755,2]
[388064232,1758997850670,-250.0,0.00028755,2]
[388064233,1758997850680,-1000.0,0.00028755,2]
[388064234,1758997850690,-200.0,0.00028755,2]
[388064235,1758997850699,-250.0,0.00028755,2]
[388064236,1758997850709,-1000.0,0.00028755,2]
[388064237,1758997850718,-200.0,0.00028755,2]
[388064238,1758997850728,-250.0,0.00028755,2]
[388064239,1758997850738,-200.0,0.00028755,2]
[388064240,1758997850748,-1000.0,0.00028755,2]
[388064241,1758997850758,-250.0,0.00028755,2]
[388064242,1758997850769,-165.86005632,0.00028755,2]
[388064243,1758997850778,-1000.0,0.00028755,2]
[388064244,1758997850787,-500.0,0.00028755,2]
[388064245,1758997850797,-250.0,0.00028755,2]
[388064246,1758997850806,-1000.0,0.00028755,2]
[388064247,1758997850815,-500.0,0.00028755,2]
[388064248,1758997850826,-151.0,0.00028755,2]
[388064249,1758997850835,-1000.0,0.00028755,2]
[388064250,1758997850845,-500.0,0.00028755,2]
[388064251,1758997850854,-151.0,0.00028755,2]
[388064252,1758997850864,-1000.0,0.00028755,2]
[388064253,1758997850874,-1000.0,0.00028755,2]
[388064254,1758997850884,-151.0,0.00028755,2]
[388064255,1758997850893,-500.0,0.00028755,2]
[388064256,1758997850903,-1000.0,0.00028755,2]
[388064257,1758997850912,-1000.0,0.00028755,2]
[388064258,1758997850922,-151.0,0.00028755,2]
[388064259,1758997850931,-500.0,0.00028755,2]
[388064260,1758997850941,-1000.0,0.00028755,2]
[388064261,1758997850951,-1000.0,0.00028755,2]
[388064262,1758997850962,-500.0,0.00028755,2]
[388064263,1758997850971,-1000.0,0.00028755,2]
[388064264,1758997850980,-1000.0,0.00028755,2]
[388064265,1758997850990,-151.0,0.00028755,2]
[388064266,1758997850999,-500.0,0.00028755,2]
[388064267,1758997851009,-1000.0,0.00028755,2]
[388064268,1758997851019,-1000.0,0.00028755,2]
[388064269,1758997851028,-151.0,0.00028755,2]
[388064270,1758997851038,-151.0,0.00028755,2]
[388064271,1758997851047,-500.0,0.00028755,2]
[388064272,1758997851056,-1000.0,0.00028755,2]
[388064273,1758997851066,-1110.96066527,0.00028755,2]
[388064274,1758997851075,-151.0,0.00028755,2]
[388064275,1758997851084,-151.0,0.00028755,2]
[388064276,1758997851095,-500.0,0.00028755,2]
[388064277,1758997851104,-1000.0,0.00028755,2]
[388064278,1758997851114,-151.0,0.00028755,2]
[388064279,1758997851124,-151.0,0.00028755,2]
[388064280,1758997851134,-500.0,0.00028755,2]
[388064281,1758997851143,-1000.0,0.00028755,2]
[388064282,1758997851153,-151.0,0.00028755,2]
[388064283,1758997851162,-151.0,0.00028755,2]
[388064284,1758997851172,-500.0,0.00028755,2]
[388064285,1758997851181,-1000.0,0.00028755,2]
[388064286,1758997851191,-151.0,0.00028755,2]
[388064287,1758997851200,-151.0,0.00028755,2]
[388064288,1758997851209,-500.0,0.00028755,2]
[388064289,1758997851219,-1000.0,0.00028755,2]
[388064290,1758997851228,-300.23212506,0.00028755,2]
[388064291,1758997851238,-151.0,0.00028755,2]
[388064292,1758997851247,-1000.0,0.00028755,2]
[388064293,1758997851257,-151.0,0.00028755,2]
[388064294,1758997851266,-1000.0,0.00028755,2]
[388064295,1758997851275,-151.0,0.00028755,2]
[388064296,1758997851285,-1000.0,0.00028755,2]
[388064297,1758997851294,-267.24558836,0.00028755,2]
[388064298,1758997851304,-1000.0,0.00028755,2]
[388064299,1758997851314,-1000.0,0.00028755,2]
[388064300,1758997851323,-1000.0,0.00028755,2]
[388064301,1758997851333,-1000.0,0.00028755,2]
[388064302,1758997851343,-1000.0,0.00028755,2]
[388064303,1758997851353,-1000.0,0.00028755,2]
[388064304,1758997851363,-1000.0,0.00028755,2]
[388064305,1758997851372,-151.0,0.00028755,2]
[388064306,1758997851382,-200.64408211,0.00028755,2]
[388064307,1758997851392,-2000.0,0.0002876,5]
[388064308,1758997851406,-3500.0,0.0002876,5]
[388064309,1758997851416,-3500.0,0.0002876,5]
[388064310,1758997851426,-3500.0,0.0002876,5]
[388064311,1758997851437,-199.0,0.00028904,15]
[388064312,1758997851448,-922.47101092,0.00028916,5]
[388064313,1758997851458,-2000.0,0.00028916,5]
[388064314,1758997851467,-1556.59633791,0.00028916,5]
[388064315,1758997851479,-2000.0,0.00028916,5]
[388064316,1758997851488,-780.75566616,0.00028916,5]
[388064317,1758997851499,-2000.0,0.00028916,5]
[388064318,1758997851509,-2000.0,0.00028916,5]
[388064319,1758997851518,-1000.0,0.00028916,5]
[388064320,1758997851528,-533.55829904,0.00028916,5]
[388064321,1758997851538,-812.85088604,0.00028916,5]
[388064322,1758997851547,-1459.60097667,0.00028916,5]
[388064323,1758997851557,-2000.0,0.00028916,5]
[388064324,1758997851566,-180.0,0.00028949,2]
[388064325,1758997851575,-587.0,0.00028949,2]
[388064326,1758997851584,-587.0,0.00028949,2]
[388064327,1758997851594,-258.0,0.00028949,2]
[388064328,1758997851604,-219.49491043,0.00028957,5]
[388064329,1758997851614,-879.28833795,0.00029,2]
[388064330,1758997851623,-96555.96504328,0.00029,3]
[388064331,1758997851633,-151.0,0.00029,7]
[388064332,1758997851642,-151.0,0.00029,7]
[388064333,1758997851652,-3676.0,0.00029,7]
[388064334,1758997851661,-193.464701,0.00029,7]
[388064335,1758997851671,-3676.0,0.00029,7]
[388064336,1758997851681,-3676.0,0.00029,7]
[388064337,1758997851691,-3676.0,0.00029,7]
[388064338,1758997851701,-151.0,0.00029,7]
[388064339,1758997851710,-151.0,0.00029,7]
[388064340,1758997851720,-151.0,0.00029,7]
[388064341,1758997851729,-151.0,0.00029,7]
[388064342,1758997851739,-729.12591,0.00029,7]
[388064343,1758997851748,-729.12591,0.00029,7]
[388064344,1758997851758,-729.12591,0.00029,7]
[388064345,1758997851768,-729.1259,0.00029,7]
[388064346,1758997851778,-215.64272,0.00029,7]
[388064347,1758997851788,-151.0,0.00029,7]
[388064348,1758997851798,-151.0,0.00029,7]
[388064349,1758997851807,-266.005067,0.00029,7]
[388064350,1758997851817,-490.731149,0.00029,7]
[388064351,1758997851826,-490.731149,0.00029,7]
[388064352,1758997851836,-490.731149,0.00029,7]
[388064353,1758997851845,-490.731157,0.00029,7]
[388064354,1758997851854,-2000.0,0.00029044,5]
[388064355,1758997851864,-4000.0,0.00029108,5]
[388064356,1758997851874,-2721.58803983,0.00029108,5]
[388064357,1758997851884,-540.17008348,0.00029108,5]
[388064358,1758997851894,-1516.06939654,0.0002911,2]
[388064359,1758997851903,-195.59024746,0.00029139,5]
[388064360,1758997851912,-2000.0,0.00029139,5]
[388064361,1758997851921,-1991.78188147,0.00029139,5]
[388064362,1758997851932,-2351.0,0.00029213,2]
[388064363,1758997851942,-500000.0,0.0002922,2]
[388064364,1758997851951,-151.0,0.0002922,7]
[388064365,1758997851961,-151.0,0.0002922,7]
[388064366,1758997851971,-151.0,0.0002922,7]
[388064367,1758997851980,-263.500889,0.0002922,7]
[388064368,1758997851989,-151.0,0.0002922,7]
[388064369,1758997851998,-151.0,0.0002922,7]
[388064370,1758997852007,-151.0,0.0002922,7]
[388064371,1758997852017,-151.0,0.0002922,7]
[388064372,1758997852026,-264.591288,0.0002922,7]
[388064373,1758997852036,-151.0,0.0002922,7]
[388064374,1758997852045,-151.0,0.0002922,7]
[388064375,1758997852054,-151.0,0.0002922,7]
[388064376,1758997852063,-158.978155,0.0002922,7]
[388064377,1758997852073,-151.0,0.0002922,7]
[388064378,1758997852082,-172.14,0.0002922,7]
[388064379,1758997852092,-152.978178,0.0002922,7]
[388064380,1758997852101,-152.978178,0.0002922,7]
[388064381,1758997852110,-152.978178,0.0002922,7]
[388064382,1758997852120,-152.978178,0.0002922,7]
[388064383,1758997852129,-217.020903,0.0002922,7]
[388064384,1758997852139,-217.020903,0.0002922,7]
[388064385,1758997852148,-217.020903,0.0002922,7]
[388064386,1758997852158,-217.020903,0.0002922,7]
[388064387,1758997852168,-242.810732,0.0002922,7]
[388064388,1758997852178,-151.0,0.0002922,7]
[388064389,1758997852188,-151.0,0.0002922,7]
[388064390,1758997852197,-151.0,0.0002922,7]
[388064391,1758997852206,-151.0,0.0002922,7]
[388064392,1758997852216,-151.0,0.0002922,7]
[388064393,1758997852227,-151.0,0.0002922,7]
[388064394,1758997852241,-151.0,0.0002922,7]
[388064395,1758997852251,-151.0,0.0002922,7]
[388064396,1758997852428,-151.0,0.0002922,7]
[388064397,1758997852438,-151.0,0.0002922,7]
[388064398,1758997852447,-151.0,0.0002922,7]
[388064399,1758997852456,-151.0,0.0002922,7]
[388064400,1758997852466,-151.0,0.0002922,7]
[388064401,1758997852475,-151.0,0.0002922,7]
[388064402,1758997852485,-151.0,0.0002922,7]
[388064403,1758997852494,-151.0,0.0002922,7]
[388064404,1758997852503,-151.0,0.0002922,7]
[388064405,1758997852512,-275.649983,0.0002922,7]
[388064406,1758997852522,-186.974653,0.0002922,7]
[388064407,1758997852531,-763.173585,0.0002922,7]
[388064408,1758997852540,-186.974653,0.0002922,7]
[388064409,1758997852550,-763.173585,0.0002922,7]
[388064410,1758997852560,-186.974653,0.0002922,7]
[388064411,1758997852569,-186.974653,0.0002922,7]
[388064412,1758997852579,-763.173585,0.0002922,7]
[388064413,1758997852588,-763.173585,0.0002922,7]
[388064414,1758997852600,-151.0,0.0002922,7]
[388064415,1758997852610,-151.0,0.0002922,7]
[388064416,1758997852619,-151.0,0.0002922,7]
[388064417,1758997852629,-151.0,0.0002922,7]
[388064418,1758997852639,-166.887006,0.0002922,7]
[388064419,1758997852648,-151.0,0.0002922,7]
[388064420,1758997852657,-151.0,0.0002922,7]
[388064421,1758997852666,-1112.133079,0.0002922,7]
[388064422,1758997852676,-151.0,0.0002922,7]
[388064423,1758997852685,-151.0,0.0002922,7]
[388064424,1758997852694,-1112.133079,0.0002922,7]
[388064425,1758997852703,-327.606136,0.0002922,7]
[388064426,1758997852712,-151.0,0.0002922,7]
[388064427,1758997852721,-327.606136,0.0002922,7]
[388064428,1758997852731,-1112.133079,0.0002922,7]
[388064429,1758997852739,-327.606136,0.0002922,7]
[388064430,1758997852748,-1112.133079,0.0002922,7]
[388064431,1758997852757,-327.606136,0.0002922,7]
[388064432,1758997852766,-151.0,0.0002922,7]
[388064433,1758997852776,-151.0,0.0002922,7]
[388064434,1758997852785,-151.0,0.0002922,7]
[388064435,1758997852794,-151.0,0.0002922,7]
[388064436,1758997852804,-151.0,0.0002922,7]
[388064437,1758997852814,-590.992229,0.0002922,7]
[388064438,1758997852823,-590.992229,0.0002922,7]
[388064439,1758997852832,-590.992229,0.0002922,7]
[388064440,1758997852842,-590.992229,0.0002922,7]
[388064441,1758997852853,-151.0,0.0002922,7]
[388064442,1758997852862,-151.0,0.0002922,7]
[388064443,1758997852871,-151.0,0.0002922,7]
[388064444,1758997852881,-151.0,0.0002922,7]
[388064445,1758997852890,-151.0,0.0002922,7]
[388064446,1758997852899,-262.845549,0.0002922,7]
[388064447,1758997852909,-262.845549,0.0002922,7]
[388064448,1758997852921,-262.845549,0.0002922,7]
[388064449,1758997852930,-262.845549,0.0002922,7]
[388064450,1758997852940,-151.0,0.0002922,7]
[388064451,1758997852949,-151.0,0.0002922,7]
[388064452,1758997852961,-151.0,0.0002922,7]
[388064453,1758997852972,-151.0,0.0002922,7]
[388064454,1758997852981,-151.0,0.0002922,7]
[388064455,1758997852990,-151.0,0.0002922,7]
[388064456,1758997852999,-151.0,0.0002922,7]
[388064457,1758997853008,-151.0,0.0002922,7]
[388064458,1758997853017,-151.0,0.0002922,7]
[388064459,1758997853027,-151.0,0.0002922,7]
[388064460,1758997853036,-446.417613,0.0002922,7]
[388064461,1758997853045,-446.417613,0.0002922,7]
[388064462,1758997853054,-446.417613,0.0002922,7]
[388064463,1758997853063,-446.417613,0.0002922,7]
[388064464,1758997853073,-913.749795,0.0002922,7]
[388064465,1758997853082,-913.749795,0.0002922,7]
[388064466,1758997853091,-913.749795,0.0002922,7]
[388064467,1758997853100,-913.749795,0.0002922,7]
[388064468,1758997853109,-508.982123,0.0002922,7]
[388064469,1758997853119,-508.982123,0.0002922,7]
[388064470,1758997853128,-508.982123,0.0002922,7]
[388064471,1758997853137,-508.982123,0.0002922,7]
[388064472,1758997853146,-151.0,0.0002922,7]
[388064473,1758997853156,-151.0,0.0002922,7]
[388064474,1758997853165,-151.0,0.0002922,7]
[388064475,1758997853175,-151.0,0.0002922,7]
[388064476,1758997853185,-151.0,0.0002922,7]
[388064477,1758997853195,-151.0,0.0002922,7]
[388064478,1758997853205,-151.0,0.0002922,7]
[388064479,1758997853214,-151.0,0.0002922,7]
[388064480,1758997853224,-387.744915,0.0002922,7]
[388064481,1758997853233,-4071.393585,0.0002922,7]
[388064482,1758997853243,-151.0,0.0002922,7]
[388064483,1758997853253,-387.744915,0.0002922,7]
[388064484,1758997853263,-4071.393585,0.0002922,7]
[388064485,1758997853274,-198.899128,0.0002922,7]
[388064486,1758997853284,-387.744915,0.0002922,7]
[388064487,1758997853294,-4071.393585,0.0002922,7]
[388064488,1758997853303,-387.744915,0.0002922,7]
[388064489,1758997853313,-4071.393585,0.0002922,7]
[388064490,1758997853323,-151.765785,0.0002922,7]
[388064491,1758997853332,-151.765785,0.0002922,7]
[388064492,1758997853341,-151.765785,0.0002922,7]
[388064493,1758997853351,-151.765785,0.0002922,7]
[388064494,1758997853362,-151.0,0.0002922,7]
[388064495,1758997853372,-151.0,0.0002922,7]
[388064496,1758997853381,-151.0,0.0002922,7]
[388064497,1758997853390,-151.0,0.0002922,7]
[388064498,1758997853400,-151.0,0.0002922,7]
[388064499,1758997853413,-151.0,0.0002922,7]
[388064500,1758997853422,-151.0,0.0002922,7]
[388064501,1758997853432,-151.0,0.0002922,7]
[388064502,1758997853442,-2916.442232,0.0002922,7]
[388064503,1758997853454,-2916.442232,0.0002922,7]
[388064504,1758997853463,-2916.442232,0.0002922,7]
[388064505,1758997853473,-2916.442232,0.0002922,7]
[388064506,1758997853486,-172.900834,0.0002922,7]
[388064507,1758997853495,-172.900834,0.0002922,7]
[388064508,1758997853505,-172.900834,0.0002922,7]
[388064509,1758997853515,-172.900834,0.0002922,7]
[388064510,1758997853524,-180.192848,0.0002922,7]
[388064511,1758997853534,-151.0,0.0002922,7]
[388064512,1758997853543,-180.192848,0.0002922,7]
[388064513,1758997853552,-283.185543,0.0002922,7]
[388064514,1758997853562,-180.192848,0.0002922,7]
[388064515,1758997853572,-154.109286,0.0002922,7]
[388064516,1758997853581,-180.192848,0.0002922,7]
[388064517,1758997853591,-151.0,0.0002922,7]
[388064518,1758997853601,-267.960717,0.0002922,7]
[388064519,1758997853611,-151.0,0.0002922,7]
[388064520,1758997853621,-267.960717,0.0002922,7]
[388064521,1758997853630,-267.960717,0.0002922,7]
[388064522,1758997853639,-267.960717,0.0002922,7]
[388064523,1758997853649,-151.0,0.0002922,7]
[388064524,1758997853659,-151.0,0.0002922,7]
[388064525,1758997853669,-151.0,0.0002922,7]
[388064526,1758997853678,-760.0,0.00029246,2]
[388064527,1758997853688,-157.0,0.00029288,2]
[388064528,1758997853698,-151.0,0.00029303,2]
[388064529,1758997853708,-1240.80136281,0.00029308,5]
[388064530,1758997853718,-674.46129776,0.00029308,5]
[388064531,1758997853728,-4000.0,0.00029308,5]
[388064532,1758997853737,-153.0690612,0.00029408,5]
[388064533,1758997853747,-1000000.0,0.0002944,2]
[388064534,1758997853757,-151.0,0.0002944,7]
[388064535,1758997853767,-151.0,0.0002944,7]
[388064536,1758997853776,-151.0,0.0002944,7]
[388064537,1758997853786,-151.0,0.0002944,7]
[388064538,1758997853795,-151.0,0.0002944,7]
[388064539,1758997853805,-151.0,0.0002944,7]
[388064540,1758997853822,-151.0,0.0002944,7]
[388064541,1758997853836,-151.0,0.0002944,7]
[388064542,1758997853845,-159.210637,0.0002944,7]
[388064543,1758997853856,-151.0,0.0002944,7]
[388064544,1758997853866,-151.0,0.0002944,7]
[388064545,1758997853876,-151.0,0.0002944,7]
[388064546,1758997853887,-151.0,0.0002944,7]
[388064547,1758997853896,-151.0,0.0002944,7]
[388064548,1758997853907,-151.0,0.0002944,7]
[388064549,1758997853916,-186.948398,0.0002944,7]
[388064550,1758997853926,-186.948398,0.0002944,7]
[388064551,1758997853936,-186.948398,0.0002944,7]
[388064552,1758997853946,-186.948398,0.0002944,7]
[388064553,1758997853957,-151.0,0.0002944,7]
[388064554,1758997853967,-151.0,0.0002944,7]
[388064555,1758997853977,-151.0,0.0002944,7]
[388064556,1758997853987,-151.0,0.0002944,7]
[388064557,1758997853998,-249.608764,0.0002944,7]